bitfinex/quotes_ETHUSD_20230117
["timestamp","ask_amount","ask_price","bid_price","bid_amount"]
[1673995731091,7.1046497,1575.0,1574.8,3.34662407]
[1673995731299,7.1046497,1575.0,1574.8,2.17036129]
[1673995731947,7.1046497,1575.0,1574.8,3.61936129]
[1673995732267,0.7554397,1575.0,1574.8,3.61936129]
[1673995732438,0.6594397,1575.0,1574.8,9.96932129]
[1673995732651,1.76219247,1575.0,1574.8,12.24290842]
[1673995733606,7.76753105,1575.1,1574.8,12.24290842]
[1673995733801,6.44499,1575.1,1574.8,12.24290842]
[1673995734481,6.44499,1575.1,1574.8,5.89294842]
[1673995734648,12.794,1575.1,1574.8,5.89294842]
[1673995735068,12.794,1575.1,1574.8,4.44394842]
[1673995735811,6.44499,1575.1,1574.8,10.79391842]
[1673995736694,12.794,1575.1,1574.8,4.44394842]
[1673995736851,12.794,1575.1,1574.8,10.79392842]
[1673995737263,6.44499,1575.1,1574.9,3.11662407]
[1673995740353,0.096,1575.1,1574.9,3.11662407]
[1673995740563,28.32666164,1575.2,1574.9,3.11662407]
[1673995740963,19.87176164,1575.2,1574.9,3.11662407]
[1673995741640,19.18126789,1575.2,1574.9,4.93222919]
[1673995741856,12.83248789,1575.2,1574.9,4.93222919]
[1673995742069,6.48388789,1575.2,1574.9,4.88222919]
[1673995742382,6.48388789,1575.2,1574.9,11.23181919]
[1673995742817,12.83266789,1575.2,1574.9,4.88222919]
[1673995744600,3.20720125,1575.1,1574.8,0.066]
[1673995744813,19.0476,1575.0,1574.4,19.06011]
[1673995745135,28.0761,1575.0,1574.5,3.11662407]
[1673995745365,28.0761,1575.0,1574.5,9.46775407]
[1673995745862,31.73215238,1575.0,1574.5,9.46775407]
[1673995746875,31.73215238,1575.0,1574.6,3.11662407]
[1673995746876,25.38295238,1575.0,1574.6,3.11662407]
[1673995747087,31.73215238,1575.0,1574.6,3.11662407]
[1673995748334,25.38295238,1575.0,1574.6,3.11662407]
[1673995749300,25.38295238,1575.0,1574.6,9.46738407]
[1673995750263,25.38295238,1575.0,1574.6,15.81819407]
[1673995750473,21.7269,1575.0,1574.6,18.04172648]
[1673995753103,15.3777,1575.0,1574.7,3.11662407]
[1673995753435,15.3777,1575.0,1574.7,16.04716407]
[1673995753436,9.0285,1575.0,1574.7,16.04716407]
[1673995753641,0.096,1575.0,1574.7,16.04716407]
[1673995753857,19.17418405,1575.1,1574.7,18.65990972]
[1673995754169,12.82504405,1575.1,1574.7,18.65990972]
[1673995755741,12.82504405,1575.1,1574.8,3.11662407]
[1673995755742,0.096,1575.1,1574.8,3.11662407]
[1673995755961,21.86164789,1575.2,1574.9,3.34662407]
[1673995756170,21.86164789,1575.2,1574.9,9.69622407]
[1673995756340,15.51299789,1575.2,1574.9,9.69622407]
[1673995756548,6.48399789,1575.2,1574.9,9.69622407]
[1673995756778,6.48399789,1575.2,1574.9,11.94240948]
[1673995759732,0.13542789,1575.2,1575.0,0.27578584]
[1673995759950,0.03942789,1575.2,1575.0,0.27578584]
[1673995762224,6.38783789,1575.2,1575.0,0.27578584]
[1673995762433,6.48383789,1575.2,1575.0,0.27578584]
[1673995765898,6.48383789,1575.2,1575.0,6.62120827]
[1673995765899,0.13542789,1575.2,1575.0,6.62120827]
[1673995766119,0.03942789,1575.2,1575.0,6.62120827]
[1673995766446,0.03942789,1575.2,1575.0,24.70951557]
[1673995766867,0.03942789,1575.2,1575.1,7.48437038]
[1673995767071,0.03942789,1575.2,1575.1,10.60099445]
[1673995767325,0.03942789,1575.2,1575.1,29.64739445]
[1673995767497,0.03942789,1575.2,1575.1,29.87739445]
[1673995767696,0.03942789,1575.2,1575.1,26.27681266]
[1673995769825,0.03942789,1575.2,1575.1,29.27681266]
[1673995778445,0.03942789,1575.2,1575.1,30.72581266]
[1673995784878,0.03942789,1575.2,1575.1,31.36255439]
[1673995785492,0.03942789,1575.2,1575.1,33.47318237]
[1673995785932,0.03942789,1575.2,1575.1,32.80955439]
[1673995786355,0.03942789,1575.2,1575.1,33.47318237]
[1673995786806,0.03942789,1575.2,1575.1,40.13418237]
[1673995787390,0.03942789,1575.2,1575.1,38.68518237]
[1673995789803,0.03665939,1575.2,1575.1,38.68518237]
[1673995790807,0.03665939,1575.2,1575.1,39.68062434]
[1673995791963,0.03665939,1575.2,1575.1,41.12889193]
[1673995792337,0.03665939,1575.2,1575.1,41.07888998]
[1673995792551,0.03665939,1575.2,1575.1,41.05969996]
[1673995792962,0.03665939,1575.2,1575.1,40.72718147]
[1673995793370,0.03665939,1575.2,1575.1,41.3892214]
[1673995798003,0.03665939,1575.2,1575.1,41.38949026]
[1673995800279,0.03665939,1575.2,1575.1,42.38493223]
[1673995800633,0.03665939,1575.2,1575.1,41.38949026]
[1673995801527,0.03665939,1575.2,1575.1,42.38493223]
[1673995801887,0.03665939,1575.2,1575.1,41.72173989]
[1673995803101,0.03665939,1575.2,1575.1,42.49032821]
[1673995803252,0.03665939,1575.2,1575.1,56.49032821]
[1673995804040,0.03665939,1575.2,1575.1,57.81758417]
[1673995804252,0.03665939,1575.2,1575.1,56.49032821]
[1673995804741,0.03665939,1575.2,1575.1,57.81758417]
[1673995804880,0.03665939,1575.2,1575.1,56.49032821]
[1673995805835,0.03665939,1575.2,1575.1,57.81758417]
[1673995806450,0.03665939,1575.2,1575.1,58.47333883]
[1673995807033,0.03665939,1575.2,1575.1,56.8221422]
[1673995808149,0.03665939,1575.2,1575.1,58.47333883]
[1673995809657,0.0326307,1575.2,1575.1,57.15545185]
[1673995812201,0.0326307,1575.2,1575.1,55.49488624]
[1673995813009,0.0326307,1575.2,1575.1,55.62442078]
[1673995813455,0.0326307,1575.2,1575.1,57.28569733]
[1673995813624,0.0326307,1575.2,1575.1,55.62442078]
[1673995814725,0.0006307,1575.2,1575.1,55.62442078]
[1673995815036,0.0006307,1575.2,1575.1,54.17742078]
[1673995815385,0.0006307,1575.2,1575.1,55.15242078]
[1673995815859,0.0006307,1575.2,1575.1,57.13663627]
[1673995816436,0.0006307,1575.2,1575.1,55.15442078]
[1673995816761,0.0006307,1575.2,1575.1,55.15242078]
[1673995816996,0.0006307,1575.2,1575.1,56.8149654]
[1673995817189,0.0006307,1575.2,1575.1,56.81498752]
[1673995817910,0.0006307,1575.2,1575.1,55.15242078]
[1673995818799,0.0006307,1575.2,1575.1,53.94042078]
[1673995818969,0.0006307,1575.2,1575.1,55.60350613]
[1673995819182,0.0006307,1575.2,1575.1,53.94042078]
[1673995819713,0.0006307,1575.2,1575.1,55.60358128]
[1673995819923,0.0006307,1575.2,1575.1,53.94042078]
[1673995820747,0.0006307,1575.2,1575.1,60.90522078]
[1673995820995,0.0006307,1575.2,1575.1,62.5687766]
[1673995821953,0.0006307,1575.2,1575.1,60.90522078]
[1673995822321,0.0006307,1575.2,1575.1,62.88943627]
[1673995822532,0.0006307,1575.2,1575.1,48.88943627]
[1673995822796,0.0006307,1575.2,1575.1,62.88943627]
[1673995823593,0.0006307,1575.2,1575.1,46.90522078]
[1673995823920,0.0006307,1575.2,1575.1,62.88943627]
[1673995825709,0.03689139,1575.5,1575.2,8.1623693]
[1673995826048,0.03689139,1575.5,1575.4,6.94686081]
[1673995826336,0.03689139,1575.5,1575.4,26.21963081]
[1673995826526,0.03689139,1575.5,1575.4,29.85637254]
[1673995826736,0.03689139,1575.5,1575.4,28.35637254]
[1673995828159,0.03689139,1575.5,1575.4,33.28219161]
[1673995828371,0.03689139,1575.5,1575.4,33.28212919]
[1673995828525,0.03689139,1575.5,1575.4,31.95062776]
[1673995828735,0.03689139,1575.5,1575.4,33.28211458]
[1673995829365,0.03689139,1575.5,1575.4,38.61162776]
[1673995830366,0.03689139,1575.5,1575.4,39.94272888]
[1673995830785,0.03689139,1575.5,1575.4,39.94273328]
[1673995830995,0.03689139,1575.5,1575.4,38.61162776]
[1673995831314,0.03689139,1575.5,1575.4,39.94245588]
[1673995831472,0.03689139,1575.5,1575.4,39.94244941]
[1673995831880,0.03689139,1575.5,1575.4,39.82362776]
[1673995832358,0.03689139,1575.5,1575.4,53.82362776]
[1673995832569,0.03689139,1575.5,1575.4,53.8225986]
[1673995832902,0.03689139,1575.5,1575.4,54.25375702]
[1673995833271,0.03689139,1575.5,1575.4,55.46475702]
[1673995834230,0.03689139,1575.5,1575.4,62.31445702]
[1673995835071,0.03689139,1575.5,1575.4,60.65103136]
[1673995835317,0.04781094,1575.7,1575.4,60.65103136]
[1673995835318,0.04781094,1575.7,1575.6,33.54812]
[1673995835529,0.04781094,1575.7,1575.6,39.10412249]
[1673995835750,0.04781094,1575.7,1575.6,43.37760595]
[1673995835903,0.04781094,1575.7,1575.6,44.07070211]
[1673995836384,0.04781094,1575.7,1575.6,42.74086422]
[1673995836526,0.04781094,1575.7,1575.6,47.9544907]
[1673995836735,0.04781094,1575.7,1575.6,46.62465281]
[1673995838208,0.04781094,1575.7,1575.6,52.97143281]
[1673995838422,0.04781094,1575.7,1575.6,54.3012707]
[1673995838666,0.04781094,1575.7,1575.6,52.97143281]
[1673995841574,9.4e-07,1575.7,1575.6,55.5132707]
[1673995841837,9.4e-07,1575.7,1575.6,54.18343281]
[1673995842199,9.4e-07,1575.7,1575.6,55.5132707]
[1673995842413,9.4e-07,1575.7,1575.6,54.18343281]
[1673995842628,9.4e-07,1575.7,1575.6,55.5132707]
[1673995843086,9.4e-07,1575.7,1575.6,54.18343281]
[1673995844053,9.4e-07,1575.7,1575.6,54.18543281]
[1673995844222,6e-06,1575.8,1575.6,59.28454014]
[1673995844434,6e-06,1575.8,1575.7,16.68461462]
[1673995844642,6e-06,1575.8,1575.7,35.72375462]
[1673995844851,6e-06,1575.8,1575.7,29.69949635]
[1673995845071,6e-06,1575.8,1575.7,28.70304418]
[1673995845683,6e-06,1575.8,1575.7,29.0351949]
[1673995846207,6e-06,1575.8,1575.7,35.6961949]
[1673995847166,6e-06,1575.8,1575.7,36.36027779]
[1673995848767,6e-06,1575.8,1575.7,36.35699613]
[1673995849726,6e-06,1575.8,1575.7,35.7202544]
[1673995849974,6e-06,1575.8,1575.7,36.35699613]
[1673995850350,6e-06,1575.8,1575.7,35.69291324]
[1673995856700,1.32e-06,1575.9,1575.8,8.161]
[1673995856864,0.04781094,1576.0,1575.9,25.38232]
[1673995857066,0.04781094,1576.0,1575.9,29.71094407]
[1673995857278,0.04781094,1576.0,1575.9,40.58698714]
[1673995858748,9.4e-07,1576.0,1575.9,47.24798714]
[1673995858958,9.0075,1576.2,1576.0,1.5]
[1673995859220,9.0075,1576.2,1576.1,28.72570407]
[1673995859432,0.096,1576.2,1576.1,28.72570407]
[1673995859603,0.0524531,1576.3,1576.1,32.3624458]
[1673995859813,0.0524531,1576.3,1576.2,25.14973407]
[1673995860058,0.0524531,1576.3,1576.2,28.91585865]
[1673995860690,0.0524531,1576.3,1576.2,29.3460449]
[1673995862028,0.0524531,1576.3,1576.2,29.3480449]
[1673995862233,0.0524531,1576.3,1576.2,29.3460449]
[1673995863730,0.0524531,1576.3,1576.2,30.61952836]
[1673995864059,0.0524531,1576.3,1576.2,29.98278663]
[1673995871210,0.0524531,1576.3,1576.2,26.44666205]
[1673995871631,0.0524531,1576.3,1576.2,19.87229205]
[1673995871843,1.2604531,1576.3,1576.2,9.89118032]
[1673995872784,1.2604531,1576.3,1576.2,3.54681032]
[1673995875124,1.2604531,1576.3,1576.2,9.89118032]
[1673995876944,1.2604531,1576.3,1576.2,3.54681032]
[1673995877155,1.2604531,1576.3,1576.2,9.89118032]
[1673995877415,1.2604531,1576.3,1576.2,22.57992032]
[1673995877575,0.0524531,1576.3,1576.2,22.80992032]
[1673995878236,0.0524531,1576.3,1576.2,3.54681032]
[1673995878449,1.2644531,1576.3,1576.2,3.54681032]
[1673995878644,1.54625485,1576.3,1576.2,0.43018625]
[1673995878861,1.54625485,1576.3,1576.2,6.77455625]
[1673995879899,1.54625485,1576.3,1576.2,0.43018625]
[1673995880974,1.54425468,1576.3,1576.2,0.43018625]
[1673995881574,1.54425468,1576.3,1576.2,3.54681032]
[1673995881817,1.26245293,1576.3,1576.2,16.23555032]
[1673995882434,1.26245293,1576.3,1576.2,22.57992032]
[1673995882662,1.26245293,1576.3,1576.2,22.80992032]
[1673995882872,0.05045293,1576.3,1576.2,22.80992032]
[1673995884310,0.05045293,1576.3,1576.2,25.79833549]
[1673995887285,0.05045293,1576.3,1576.2,22.80992032]
[1673995889174,0.05045293,1576.3,1576.2,16.46555032]
[1673995889843,0.05045293,1576.3,1576.2,10.12118032]
[1673995891907,1.26245293,1576.3,1576.2,10.12118032]
[1673995892672,1.26245293,1576.3,1576.2,9.89118032]
[1673995892993,1.66515467,1576.3,1576.2,3.54681032]
[1673995894526,1.66715467,1576.3,1576.2,3.54681032]
[1673995894737,1.66515467,1576.3,1576.2,3.54681032]
[1673995894952,1.66515467,1576.3,1576.2,0.43018625]
[1673995899094,0.45315467,1576.3,1576.2,0.43018625]
[1673995899913,1.66015467,1576.3,1576.2,0.43018625]
[1673995901195,2.86815467,1576.3,1576.2,0.43018625]
[1673995901347,12.47332398,1576.3,1576.2,1e-08]
[1673995901556,32.10046398,1576.3,1576.2,1e-08]
[1673995901903,33.30546398,1576.3,1576.2,1e-08]
[1673995902306,34.95812688,1576.3,1576.2,1e-08]
[1673995902975,34.95811749,1576.3,1576.2,1e-08]
[1673995903188,33.30546398,1576.3,1576.2,1e-08]
[1673995904727,33.33651803,1576.3,1576.2,1e-08]
[1673995906657,34.98923756,1576.3,1576.2,1e-08]
[1673995908181,35.32170365,1576.3,1576.2,1e-08]
[1673995908551,36.6442447,1576.3,1576.2,1e-08]
[1673995908862,35.32170365,1576.3,1576.2,1e-08]
[1673995909544,42.59370365,1576.3,1576.2,1e-08]
[1673995909750,45.59370365,1576.3,1576.2,1e-08]
[1673995909990,46.9162447,1576.3,1576.2,1e-08]
[1673995910203,45.59370365,1576.3,1576.2,1e-08]
[1673995910548,53.53286877,1576.3,1576.2,1e-08]
[1673995910695,0.00199999,1576.1,1575.5,7.01067134]
[1673995910906,1.208,1575.6,1575.5,6.34695]
[1673995912112,1.208,1575.6,1575.4,13.55081329]
[1673995912332,1.208,1575.6,1575.4,16.60143736]
[1673995912484,1.208,1575.6,1575.4,15.93771602]
[1673995912692,1.3288,1575.6,1575.4,6.47369195]
[1673995914955,0.1208,1575.6,1575.4,6.47369195]
[1673995915788,0.1208,1575.6,1575.4,0.12631195]
[1673995916168,1.32405405,1575.5,1575.4,0.12631195]
[1673995917231,2.82405405,1575.5,1575.4,0.12631195]
[1673995917442,3.11853945,1575.5,1575.4,0.12631195]
[1673995917670,1.61853945,1575.5,1575.4,0.12631195]
[1673995918276,3.11853945,1575.5,1575.4,0.12631195]
[1673995920066,1.61853945,1575.5,1575.4,0.12631195]
[1673995920715,3.11853945,1575.5,1575.4,0.12631195]
[1673995921527,9.46572945,1575.5,1575.4,0.12631195]
[1673995921728,9.56172945,1575.5,1575.4,0.12631195]
[1673995923042,15.90891945,1575.5,1575.4,0.12631195]
[1673995923990,23.45810945,1575.5,1575.4,0.12631195]
[1673995926346,23.45810945,1575.5,1575.0,6.41488]
[1673995926347,1.5,1575.4,1575.0,6.41488]
[1673995926557,6.34807,1575.3,1575.0,6.34888]
[1673995926772,6.44407,1575.3,1575.0,6.34888]
[1673995929413,6.47512405,1575.3,1575.0,6.34888]
[1673995929769,0.6475124,1575.2,1575.0,6.34888]
[1673995932361,0.12705405,1575.3,1575.0,12.69808]
[1673995932572,0.03105405,1575.3,1575.0,12.69808]
[1673995934055,6.37905405,1575.3,1575.0,6.34888]
[1673995934234,6.47505405,1575.3,1575.0,6.34888]
[1673995935556,0.12705405,1575.3,1575.0,12.69808]
[1673995935864,0.03105405,1575.3,1575.0,12.69808]
[1673995940239,0.03105405,1575.3,1575.0,22.16390407]
[1673995940434,9.1202,1575.4,1575.2,6.3484]
[1673995940657,0.096,1575.4,1575.2,6.3484]
[1673995940871,0.2944854,1575.5,1575.2,12.6968]
[1673995941124,6.6416854,1575.5,1575.2,12.6968]
[1673995941325,6.7376854,1575.5,1575.2,6.3484]
[1673995944490,0.096,1575.5,1575.2,9.46502407]
[1673995944655,15.04776405,1575.6,1575.2,22.16182407]
[1673995944656,8.79695405,1575.6,1575.2,22.16182407]
[1673995946065,8.79695405,1575.6,1575.4,12.69518]
[1673995946277,0.096,1575.6,1575.4,20.25477]
[1673995946487,6.4422,1575.8,1575.4,22.59850941]
[1673995946659,6.4422,1575.8,1575.4,20.25477]
[1673995948205,0.096,1575.8,1575.4,20.25477]
[1673995948334,26.54320405,1575.9,1575.4,20.25477]
[1673995948533,24.25420405,1575.9,1575.4,23.37139407]
[1673995948743,28.43302127,1575.9,1575.4,23.37139407]
[1673995950432,22.08723127,1575.9,1575.4,23.37139407]
[1673995952217,15.74157127,1575.9,1575.5,3.11662407]
[1673995952423,12.74157127,1575.9,1575.6,19.04018]
[1673995952655,8.56275405,1575.9,1575.6,19.04018]
[1673995953000,0.096,1575.9,1575.6,19.04018]
[1673995953210,24.14705,1576.0,1575.6,19.04018]
[1673995953369,17.8018,1576.0,1575.6,26.77502661]
[1673995953821,8.4802,1576.0,1575.6,26.77502661]
[1673995955006,0.096,1576.0,1575.7,3.11662407]
[1673995955160,0.07388443,1576.1,1575.8,6.34598]
[1673995955370,0.07388443,1576.1,1575.8,12.69196]
[1673995956733,6.41866443,1576.1,1575.8,12.69196]
[1673995956945,6.51466443,1576.1,1575.8,12.69196]
[1673995957153,6.51466443,1576.1,1575.8,6.34598]
[1673995958266,10.35240072,1576.1,1575.8,6.34598]
[1673995961354,16.69718072,1576.1,1575.7,19.56509]
[1673995961727,16.69718072,1576.1,1575.7,19.49909]
[1673995963195,0.16988443,1576.1,1575.8,3.11662407]
[1673995963372,0.16988443,1576.1,1575.9,6.34558]
[1673995963373,0.07388443,1576.1,1575.9,6.34558]
[1673995964226,0.07388443,1576.1,1575.9,12.69116]
[1673995970721,0.07388443,1576.1,1575.9,6.34558]
[1673995973035,0.07388443,1576.1,1575.9,12.69116]
[1673995976504,0.07388443,1576.1,1575.9,6.34558]
[1673995977024,0.07111467,1576.1,1575.9,12.69116]
[1673995983269,0.07111467,1576.1,1575.9,14.91309741]
[1673995986821,0.07111467,1576.1,1576.0,0.48483357]
[1673995987868,0.07111467,1576.1,1576.0,0.48249513]
[1673996001447,1.8331084,1576.1,1576.0,0.48249513]
[1673996002151,8.1778784,1576.1,1576.0,1e-08]
[1673996002362,16.32553992,1576.1,1576.0,1e-08]
[1673996002710,9.98076992,1576.1,1576.0,1e-08]
[1673996005156,9.98077503,1576.1,1576.0,1e-08]
[1673996007622,10.97095229,1576.1,1576.0,1e-08]
[1673996008607,10.31083412,1576.1,1576.0,1e-08]
[1673996012914,11.96358614,1576.1,1576.0,1e-08]
[1673996013158,10.31083412,1576.1,1576.0,1e-08]
[1673996013374,10.97150211,1576.1,1576.0,1e-08]
[1673996013763,9.98132485,1576.1,1576.0,1e-08]
[1673996015136,3.63655485,1576.1,1576.0,1e-08]
[1673996015349,3.53755485,1576.1,1576.0,1e-08]
[1673996016869,10.87250211,1576.1,1576.0,1e-08]
[1673996017060,23.00037412,1576.1,1576.0,1e-08]
[1673996017269,24.65327542,1576.1,1576.0,1e-08]
[1673996018533,25.31396446,1576.1,1576.0,1e-08]
[1673996020795,24.3237872,1576.1,1576.0,1e-08]
[1673996020938,17.9790172,1576.1,1576.0,1e-08]
[1673996021148,16.3261159,1576.1,1576.0,1e-08]
[1673996022137,0.00199999,1575.9,1575.8,6.34595]
[1673996022326,0.00199999,1575.9,1575.7,13.21907]
[1673996022523,0.00199999,1575.9,1575.7,13.15307]
[1673996026312,0.00199999,1575.9,1575.7,6.8069]
[1673996026667,1.34722389,1575.9,1575.7,6.8069]
[1673996027307,7.69283389,1575.9,1575.7,6.8069]
[1673996027527,7.79183389,1575.9,1575.7,6.8069]
[1673996028049,7.79183389,1575.9,1575.6,16.21516]
[1673996028254,7.12516339,1575.8,1575.5,0.066]
[1673996028472,13.57031339,1575.8,1575.4,30.06105]
[1673996028716,13.57031339,1575.8,1575.4,33.17767407]
[1673996028829,19.91646339,1575.8,1575.4,17.3663]
[1673996029037,1.99164634,1575.7,1575.3,7.07745134]
[1673996029305,12.72461405,1575.6,1575.2,25.56532764]
[1673996029617,12.82361405,1575.6,1575.2,24.50377498]
[1673996030667,12.82361405,1575.6,1575.2,23.84005364]
[1673996031811,14.03261405,1575.6,1575.2,23.84005364]
[1673996032043,7.7504514,1575.5,1575.2,23.84005364]
[1673996032218,7.8494514,1575.5,1575.2,23.84005364]
[1673996032435,7.8494514,1575.5,1575.2,16.83305364]
[1673996033082,1.5022614,1575.5,1575.2,23.84517498]
[1673996033267,1.4032614,1575.5,1575.2,23.84517498]
[1673996033479,22.63571405,1575.6,1575.2,23.84517498]
[1673996033720,21.42671405,1575.6,1575.2,23.18145364]
[1673996033936,21.42671405,1575.6,1575.2,23.84517498]
[1673996034109,15.07993405,1575.6,1575.2,23.84517498]
[1673996036547,8.73315405,1575.6,1575.2,33.31019905]
[1673996036739,8.73315405,1575.6,1575.2,37.51610554]
[1673996038478,8.73315405,1575.6,1575.2,38.5116582]
[1673996038697,8.73315405,1575.6,1575.2,37.51610554]
[1673996040019,0.099,1575.6,1575.3,3.11662407]
[1673996040233,27.66838339,1575.8,1575.4,22.15939407]
[1673996040422,17.73238339,1575.8,1575.4,22.15939407]
[1673996040627,15.66538339,1575.8,1575.4,22.15939407]
[1673996041785,22.01158339,1575.8,1575.4,22.15939407]
[1673996041996,2.20115834,1575.7,1575.4,9.46421407]
[1673996042261,8.54759834,1575.7,1575.4,9.46421407]
[1673996042477,8.64659834,1575.7,1575.4,9.46421407]
[1673996044942,8.64442232,1575.7,1575.4,9.46421407]
[1673996046750,6.44544,1575.7,1575.4,9.46421407]
[1673996046964,0.099,1575.7,1575.4,15.81180407]
[1673996047213,22.04263744,1575.8,1575.4,15.81180407]
[1673996047495,21.99263744,1575.8,1575.4,15.81180407]
[1673996051431,21.99263744,1575.8,1575.4,6.34759]
[1673996051590,6.34686,1575.6,1575.3,6.41376]
[1673996051802,6.44586,1575.6,1575.3,6.34776]
[1673996052058,12.79272,1575.6,1575.2,41.93534937]
[1673996052214,12.79272,1575.6,1575.2,31.29404078]
[1673996052424,21.27342837,1575.6,1575.2,30.65729905]
[1673996053110,21.27342837,1575.6,1575.2,27.65729905]
[1673996054101,21.27342837,1575.6,1575.2,26.99357771]
[1673996054362,21.27342837,1575.6,1575.2,17.52882364]
[1673996054580,22.48442837,1575.6,1575.2,17.52882364]
[1673996054787,14.94318284,1575.5,1575.2,17.52882364]
[1673996054955,15.04218284,1575.5,1575.2,17.52882364]
[1673996056357,15.04218284,1575.5,1575.2,0.12562364]
[1673996056549,21.38967284,1575.5,1575.2,0.12562364]
[1673996057630,21.42072689,1575.5,1575.2,0.12562364]
[1673996057845,2.14207269,1575.4,1575.2,0.12562364]
[1673996058159,8.48986269,1575.4,1575.2,0.12562364]
[1673996058342,8.58886269,1575.4,1575.2,0.12562364]
[1673996059739,21.31529674,1575.4,1575.2,0.12562364]
[1673996068841,2.13123755,1575.3,1575.2,0.12562364]
[1673996069015,8.47922755,1575.3,1575.2,0.12562364]
[1673996069223,8.57822755,1575.3,1575.2,0.12562364]
[1673996069847,22.47720755,1575.3,1575.2,0.12562364]
[1673996073046,31.52120755,1575.3,1575.2,0.12562364]
[1673996074357,3.15212075,1575.2,1575.1,0.00222953]
[1673996074524,9.89574482,1575.2,1575.1,0.00222953]
[1673996074750,25.44507419,1575.2,1575.1,0.00222953]
[1673996074958,30.0990688,1575.2,1575.1,0.00222953]
[1673996075170,29.43837976,1575.2,1575.1,0.00222953]
[1673996075723,30.09529513,1575.2,1575.1,0.00222953]
[1673996076054,2.0,1575.1,1574.9,0.1351769]
[1673996076431,25.99422407,1575.0,1574.9,0.1351769]
[1673996076607,34.75222407,1575.0,1574.9,0.1351769]
[1673996078051,34.78327812,1575.0,1574.9,0.1351769]
[1673996079433,41.13247812,1575.0,1574.9,0.1351769]
[1673996079651,44.13247812,1575.0,1574.9,0.1351769]
[1673996080541,6.85605581,1574.8,1574.6,0.15217188]
[1673996080908,43.69372114,1574.7,1574.4,0.12562364]
[1673996081077,25.40488,1574.5,1574.4,0.12562364]
[1673996081273,32.25050407,1574.5,1574.4,0.12562364]
[1673996081482,31.07255812,1574.5,1574.4,0.12562364]
[1673996081711,34.07255812,1574.5,1574.4,0.12562364]
[1673996083174,27.72133812,1574.5,1574.4,0.12562364]
[1673996083388,30.69435914,1574.5,1574.4,0.12562364]
[1673996083626,7.69127405,1574.5,1574.4,0.12562364]
[1673996084063,0.099,1574.5,1574.4,1.19162364]
[1673996084275,0.099,1574.6,1574.4,1.19162364]
[1673996084490,1.51105581,1574.8,1574.4,1.19162364]
[1673996084711,0.19505581,1574.8,1574.4,1.19162364]
[1673996084895,0.19505581,1574.8,1574.4,1.32673991]
[1673996086046,1.40005581,1574.8,1574.4,1.32673991]
[1673996086240,1.40005581,1574.8,1574.4,1.19162364]
[1673996088027,1.40005581,1574.8,1574.4,3.19162364]
[1673996088256,1.40005581,1574.8,1574.4,1.19162364]
[1673996088680,0.19505581,1574.8,1574.4,3.19162364]
[1673996089275,0.19505581,1574.8,1574.4,1.19162364]
[1673996090739,6.54510581,1574.8,1574.4,0.12562364]
[1673996090964,6.64410581,1574.8,1574.4,0.12562364]
[1673996091322,9.5784568,1574.8,1574.4,0.12562364]
[1673996092121,6.64410581,1574.8,1574.4,2.12562364]
[1673996092576,6.64410581,1574.8,1574.4,0.12562364]
[1673996092995,6.64410581,1574.8,1574.4,6.47724364]
[1673996093506,6.64410581,1574.8,1574.4,8.47724364]
[1673996093693,6.64410581,1574.8,1574.5,1.211]
[1673996094751,6.64410581,1574.8,1574.5,3.73617636]
[1673996096621,6.64410581,1574.8,1574.5,1.211]
[1673996096961,6.64410581,1574.8,1574.5,3.211]
[1673996097172,6.64410581,1574.8,1574.5,7.56221]
[1673996099002,6.64410581,1574.8,1574.5,9.56221]
[1673996099214,0.29405581,1574.8,1574.6,1.211]
[1673996099369,0.19505581,1574.8,1574.6,15.91238]
[1673996099576,0.19505581,1574.8,1574.6,18.345339]
[1673996099790,0.19505581,1574.8,1574.7,1.211]
[1673996100034,0.19505581,1574.8,1574.7,7.56141]
[1673996103484,0.19108448,1574.8,1574.7,7.56141]
[1673996106051,4.37370855,1574.8,1574.6,1.277]
[1673996106240,1.50337086,1574.7,1574.4,6.47719364]
[1673996106433,1.50337086,1574.7,1574.4,12.82861364]
[1673996106434,1.066,1574.7,1574.4,12.82861364]
[1673996106944,7.73714853,1574.8,1574.4,12.82861364]
[1673996107155,7.73714853,1574.8,1574.4,14.03961364]
[1673996108013,7.73714853,1574.8,1574.4,14.27761364]
[1673996110667,7.73714853,1574.8,1574.4,12.82861364]
[1673996110845,0.77371485,1574.7,1574.4,12.82861364]
[1673996115033,20.43767853,1574.8,1574.4,12.82861364]
[1673996116035,20.43767853,1574.8,1574.4,0.12562364]
[1673996124150,22.74950995,1574.8,1574.4,0.12562364]
[1673996124507,21.09521917,1574.8,1574.4,0.12168595]
[1673996126508,20.43767853,1574.8,1574.4,0.12168595]
[1673996126719,2.04376785,1574.7,1574.4,0.12168595]
[1673996126967,14.74489785,1574.7,1574.4,0.12168595]
[1673996127185,14.84389785,1574.7,1574.4,0.12168595]
[1673996132754,14.84389785,1574.7,1574.5,0.37831313]
[1673996133337,8.49320785,1574.7,1574.5,0.37831313]
[1673996134330,0.84932078,1574.6,1574.5,0.37831313]
[1673996134560,8.49320785,1574.7,1574.5,0.37831313]
[1673996135284,0.099,1574.7,1574.5,6.72947313]
[1673996135456,6.57216853,1574.8,1574.5,6.72947313]
[1673996135811,6.67116853,1574.8,1574.5,6.72947313]
[1673996139280,6.67116853,1574.8,1574.5,8.72947313]
[1673996140017,0.32113853,1574.8,1574.6,1.203]
[1673996140322,0.22213853,1574.8,1574.6,7.55377]
[1673996140540,0.19108448,1574.8,1574.6,13.90458]
[1673996140912,0.19108448,1574.8,1574.7,0.3803264]
[1673996141766,0.19108448,1574.8,1574.6,13.91058]
[1673996142000,0.19108448,1574.8,1574.6,7.55377]
[1673996142212,0.19108448,1574.8,1574.6,13.90458]
[1673996143916,8.6938,1574.9,1574.7,1.205]
[1673996144080,8.6938,1574.9,1574.7,13.90537]
[1673996145883,0.099,1574.9,1574.8,1.204]
[1673996146103,0.099,1575.1,1574.8,7.55401]
[1673996146425,21.86454064,1575.2,1574.8,13.90402]
[1673996146636,21.86454064,1575.2,1574.9,1.213]
[1673996146846,9.16744064,1575.2,1574.9,13.91207]
[1673996147090,8.5099,1575.2,1574.9,13.91207]
[1673996147373,8.5099,1575.2,1574.9,16.2049796]
[1673996148347,0.099,1575.2,1575.1,1.213]
[1673996148483,23.14499937,1575.4,1575.1,1.213]
[1673996149418,22.15674379,1575.4,1575.1,1.213]
[1673996151740,8.80373315,1575.4,1575.1,14.794066]
[1673996151949,9.46127379,1575.4,1575.1,14.794066]
[1673996152212,8.80373315,1575.4,1575.1,14.794066]
[1673996152401,0.09583315,1575.4,1575.1,17.91069007]
[1673996152572,0.05620951,1575.5,1575.2,3.00406901]
[1673996152780,0.05620951,1575.5,1575.2,15.70038901]
[1673996152995,0.05620951,1575.5,1575.2,22.04878901]